Workbook

Sheet паспорт
A1: ПАТ "УКРТРАНСГАЗ" | G1: ПАСПОРТ ФІЗИКО-ХІМІЧНИХ ПОКАЗНИКІВ ПРИРОДНОГО ГАЗУ № 634
A2: Філія "УМГ "ХАРКІВТРАНСГАЗ" | G2: переданого Сєвєродонецьким ЛВУМГ та прийнятого ПрАТ ЛИНІК, ЛВДС "Лисичанськ" філії ПДМН ПАТ "Укртранснафта"
A3: Сєвєродонецьке ЛВУМГ | G3: Маршрут № 634
A4: Вимірювальна хіміко-аналітична лабораторія
A5: Свідоцтво № РЬ089/2014 чинно до 06.06.2017 р. | K5: по газопроводу "Новопсков-Лоскутівка" | V5: за період з | X5: 01.02.2017 р. | Z5: по | AA5: 28.02.2017 р.
A7: Число місяця | B7: Компонентний склад, мол. % | N7: Фізико-хімічні показники газу обчислені на основі компонентного складу, 101,325 кПа | X7: Температура точки роси за вологою (Р = 3.92 МПа), °С | Y7: Температура точки роси за вуглеводнями, °С | Z7: Вміст сірководню, г/м3 | AA7: Вміст меркаптанової сірки, г/м3 | AB7: Вміст механічних домішок, г/м3
N8: Густина абсолютна, кг/м3,при 20 °С, | O8: Температура вимірювання/згоряння при 20/25°С
B9: метан, С1 | C9: етан, С2 | D9: пропан, С3 | E9: ізо-бутан, і-С4 | F9: н-бутан, н-С4 | G9: нео-пентан, нео-С5 | H9: ізо-пентан, і-С5 | I9: н-пентан, н-С5 | J9: гексани та вищі, С6+ | K9: кисень, О2 | L9: азот, N2 | M9: діоксид вуглецю, CО2 | O9: Теплота згоряння нижча | R9: Теплота згоряння вища | U9: Число Воббе вище
O10: ккал/м³ | P10: МДж/м³ | Q10: кВт⋅год/м³ | R10: ккал/м³ | S10: МДж/м³ | T10: кВт⋅год/м³ | U10: ккал/м³ | V10: МДж/м³ | W10: кВт⋅год/м³
A11: 1 | O11: =P11*238.8459 -> 8186.108838 | P11: 34.2736 | Q11: =P11/3.6 -> 9.520444444 | R11: =S11*238.8459 -> 9064.870674 | S11: 37.9528 | T11: =S11/3.6 -> 10.54244444 | U11: =V11/0.0041868 -> 11566.75743 | V11: 48.4277 | W11: =V11/3.6 -> 13.45213889 | AC11: =SUM(B11:M11)+$K$42+$N$42 -> 0
A12: 2 | O12: =P12*238.8459 -> 8186.108838 | P12: 34.2736 | Q12: =P12/3.6 -> 9.520444444 | R12: =S12*238.8459 -> 9064.870674 | S12: 37.9528 | T12: =S12/3.6 -> 10.54244444 | U12: =V12/0.0041868 -> 11566.75743 | V12: 48.4277 | W12: =V12/3.6 -> 13.45213889 | AC12: 0
A13: 3 | O13: 8186.108838 | P13: 34.2736 | Q13: 9.520444444 | R13: 9064.870674 | S13: 37.9528 | T13: 10.54244444 | U13: 11566.75743 | V13: 48.4277 | W13: 13.45213889 | AC13: 0 | AD13: =IF(AC13=100,"ОК"," ") -> 
A14: 4 | O14: 8186.108838 | P14: 34.2736 | Q14: 9.520444444 | R14: 9064.870674 | S14: 37.9528 | T14: 10.54244444 | U14: 11566.75743 | V14: 48.4277 | W14: 13.45213889 | AC14: 0 | AD14: =IF(AC14=100,"ОК"," ") -> 
A15: 5 | O15: 8186.108838 | P15: 34.2736 | Q15: 9.520444444 | R15: 9064.870674 | S15: 37.9528 | T15: 10.54244444 | U15: 11566.75743 | V15: 48.4277 | W15: 13.45213889 | AC15: 0
A16: 6 | O16: 8186.108838 | P16: 34.2736 | Q16: 9.520444444 | R16: 9064.870674 | S16: 37.9528 | T16: 10.54244444 | U16: 11566.75743 | V16: 48.4277 | W16: 13.45213889 | AC16: 0
A17: 7 | O17: 8186.108838 | P17: 34.2736 | Q17: 9.520444444 | R17: 9064.870674 | S17: 37.9528 | T17: 10.54244444 | U17: 11566.75743 | V17: 48.4277 | W17: 13.45213889 | AC17: 0
A18: 8 | B18: 90.9297 | C18: 3.4289 | D18: 1.1219 | E18: 0.1448 | F18: 0.252 | G18: 0.0044 | H18: 0.0562 | I18: 0.0489 | J18: 0.1312 | K18: 0.0107 | L18: 2.8116 | M18: 1.0597 | N18: 0.7413 | O18: =P18*238.8459 -> 8168.79251 | P18: 34.2011 | Q18: =P18/3.6 -> 9.500305556 | R18: =S18*238.8459 -> 9045.619694 | S18: 37.8722 | T18: =S18/3.6 -> 10.52005556 | U18: =V18/0.0041868 -> 11529.95128 | V18: 48.2736 | W18: =V18/3.6 -> 13.40933333 | AC18: 100 | AD18: ОК
A19: 9 | O19: =P19*238.8459 -> 8168.79251 | P19: 34.2011 | Q19: =P19/3.6 -> 9.500305556 | R19: =S19*238.8459 -> 9045.619694 | S19: 37.8722 | T19: =S19/3.6 -> 10.52005556 | U19: =V19/0.0041868 -> 11529.95128 | V19: 48.2736 | W19: =V19/3.6 -> 13.40933333 | AC19: 0
A20: 10 | O20: 8168.79251 | P20: 34.2011 | Q20: 9.500305556 | R20: 9045.619694 | S20: 37.8722 | T20: 10.52005556 | U20: 11529.95128 | V20: 48.2736 | W20: 13.40933333 | AC20: 0
A21: 11 | O21: 8168.79251 | P21: 34.2011 | Q21: 9.500305556 | R21: 9045.619694 | S21: 37.8722 | T21: 10.52005556 | U21: 11529.95128 | V21: 48.2736 | W21: 13.40933333 | AC21: 0
A22: 12 | O22: 8168.79251 | P22: 34.2011 | Q22: 9.500305556 | R22: 9045.619694 | S22: 37.8722 | T22: 10.52005556 | U22: 11529.95128 | V22: 48.2736 | W22: 13.40933333 | AC22: 0
A23: 13 | O23: 8168.79251 | P23: 34.2011 | Q23: 9.500305556 | R23: 9045.619694 | S23: 37.8722 | T23: 10.52005556 | U23: 11529.95128 | V23: 48.2736 | W23: 13.40933333 | AC23: 0
A24: 14 | O24: 8168.79251 | P24: 34.2011 | Q24: 9.500305556 | R24: 9045.619694 | S24: 37.8722 | T24: 10.52005556 | U24: 11529.95128 | V24: 48.2736 | W24: 13.40933333 | AC24: 0
A25: 15 | O25: 8168.79251 | P25: 34.2011 | Q25: 9.500305556 | R25: 9045.619694 | S25: 37.8722 | T25: 10.52005556 | U25: 11529.95128 | V25: 48.2736 | W25: 13.40933333 | AC25: 0
A26: 16 | O26: 8168.79251 | P26: 34.2011 | Q26: 9.500305556 | R26: 9045.619694 | S26: 37.8722 | T26: 10.52005556 | U26: 11529.95128 | V26: 48.2736 | W26: 13.40933333 | AC26: 0
A27: 17 | O27: 8168.79251 | P27: 34.2011 | Q27: 9.500305556 | R27: 9045.619694 | S27: 37.8722 | T27: 10.52005556 | U27: 11529.95128 | V27: 48.2736 | W27: 13.40933333 | AC27: 0
A28: 18 | O28: 8168.79251 | P28: 34.2011 | Q28: 9.500305556 | R28: 9045.619694 | S28: 37.8722 | T28: 10.52005556 | U28: 11529.95128 | V28: 48.2736 | W28: 13.40933333 | AC28: 0
A29: 19 | O29: 8168.79251 | P29: 34.2011 | Q29: 9.500305556 | R29: 9045.619694 | S29: 37.8722 | T29: 10.52005556 | U29: 11529.95128 | V29: 48.2736 | W29: 13.40933333 | AC29: 0
A30: 20 | O30: 8168.79251 | P30: 34.2011 | Q30: 9.500305556 | R30: 9045.619694 | S30: 37.8722 | T30: 10.52005556 | U30: 11529.95128 | V30: 48.2736 | W30: 13.40933333 | AC30: 0 | AD30: =IF(AC30=100,"ОК"," ") -> 
A31: 21 | O31: 8168.79251 | P31: 34.2011 | Q31: 9.500305556 | R31: 9045.619694 | S31: 37.8722 | T31: 10.52005556 | U31: 11529.95128 | V31: 48.2736 | W31: 13.40933333 | AC31: 0
A32: 22 | O32: 8168.79251 | P32: 34.2011 | Q32: 9.500305556 | R32: 9045.619694 | S32: 37.8722 | T32: 10.52005556 | U32: 11529.95128 | V32: 48.2736 | W32: 13.40933333 | AC32: 0
A33: 23 | O33: 8168.79251 | P33: 34.2011 | Q33: 9.500305556 | R33: 9045.619694 | S33: 37.8722 | T33: 10.52005556 | U33: 11529.95128 | V33: 48.2736 | W33: 13.40933333 | AC33: 0 | AD33: =IF(AC33=100,"ОК"," ") -> 
A34: 24 | O34: 8168.79251 | P34: 34.2011 | Q34: 9.500305556 | R34: 9045.619694 | S34: 37.8722 | T34: 10.52005556 | U34: 11529.95128 | V34: 48.2736 | W34: 13.40933333 | AC34: 0
A35: 25 | O35: 8168.79251 | P35: 34.2011 | Q35: 9.500305556 | R35: 9045.619694 | S35: 37.8722 | T35: 10.52005556 | U35: 11529.95128 | V35: 48.2736 | W35: 13.40933333 | AC35: 0
A36: 26 | O36: 8168.79251 | P36: 34.2011 | Q36: 9.500305556 | R36: 9045.619694 | S36: 37.8722 | T36: 10.52005556 | U36: 11529.95128 | V36: 48.2736 | W36: 13.40933333 | AC36: 0
A37: 27 | O37: 8168.79251 | P37: 34.2011 | Q37: 9.500305556 | R37: 9045.619694 | S37: 37.8722 | T37: 10.52005556 | U37: 11529.95128 | V37: 48.2736 | W37: 13.40933333 | AC37: 0
A38: 28 | O38: 8168.79251 | P38: 34.2011 | Q38: 9.500305556 | R38: 9045.619694 | S38: 37.8722 | T38: 10.52005556 | U38: 11529.95128 | V38: 48.2736 | W38: 13.40933333 | AC38: 0
A39: 29 | AC39: 0
A40: 30 | AC40: 0
A41: 31 | AC41: 0
A42: Рівень одоризації відповідає чинним нормативним документам | O42: =SUMPRODUCT(O11:O41,' розрахунок'!E7:E37)/' розрахунок'!E38 -> 8173.702262 | P42: =SUMPRODUCT(P11:P41,' розрахунок'!E7:E37)/' розрахунок'!E38 -> 34.22165615 | Q42: =SUMPRODUCT(Q11:Q41,' розрахунок'!E7:E37)/' розрахунок'!E38 -> 9.506015597 | R42: =SUMPRODUCT(R11:R41,' розрахунок'!E7:E37)/' розрахунок'!E38 -> 9051.077983 | S42: =SUMPRODUCT(S11:S41,' розрахунок'!E7:E37)/' розрахунок'!E38 -> 37.89505277 | T42: =SUMPRODUCT(T11:T41,' розрахунок'!E7:E37)/' розрахунок'!E38 -> 10.52640355
H43: Середньозважене значення теплоти згоряння:
B46: Начальник управління Сєвєродонецького ЛВУМГ Головко Ю.О.
C47: Підрозділу підприємства, якому підпорядкована лабораторія | O47: прізвище | R47: підпис | V47: дата
B48: Інженер ІІ кат.вимірювальної хіміко-аналітичної лабораторії Єрьоменко М.О.
C49: Лабораторія, де здійснювалось вимірювання газу | O49: прізвище | R49: підпис | V49: дата
B50: Начальник служби метрології Ісаєв В.С.
C51: Підрозділу, відповідального за облік газу за маршрутом | O51: прізвище | R51: підпис | V51: дата

Sheet розрахунок (hidden)
A2: Додаток до Паспорту фізико-хімічних показників природного газу по маршруту № 634
A4: Число місяця | B4: Теплота згоряння вища, МДж/м3 | C4: Луганська область | E4: Загальний обсяг газу, м3
C5: Обсяг газу переданого за добу, м3
C6: ГРС НПЗ | D6: ГРС НПС
A7: 1 | B7: 37.9528 | C7: 125012.82 | D7: 629.13 | E7: =D7+C7 -> 125641.95
A8: 2 | B8: 37.9528 | C8: 117645.88 | D8: 710.63 | E8: 118356.51
A9: 3 | B9: 37.9528 | C9: 114278.75 | D9: 623.79 | E9: 114902.54
A10: 4 | B10: 37.9528 | C10: 109539.05 | D10: 168.16 | E10: 109707.21
A11: 5 | B11: 37.9528 | C11: 108290.97 | D11: 561.28 | E11: 108852.25
A12: 6 | B12: 37.9528 | C12: 119368.96 | D12: 683.87 | E12: 120052.83
A13: 7 | B13: 37.9528 | C13: 129172.77 | D13: 824.75 | E13: 129997.52
A14: 8 | B14: 37.8722 | C14: 131860.91 | D14: 844.08 | E14: 132704.99
A15: 9 | B15: 37.8722 | C15: 130264.8 | D15: 731.99 | E15: 130996.79
A16: 10 | B16: 37.8722 | C16: 126464.95 | D16: 826.88 | E16: 127291.83
A17: 11 | B17: 37.8722 | C17: 116369.3 | D17: 648.15 | E17: 117017.45
A18: 12 | B18: 37.8722 | C18: 112390.39 | D18: 660.6 | E18: 113050.99
A19: 13 | B19: 37.8722 | C19: 110642.8 | D19: 635.6 | E19: 111278.4
A20: 14 | B20: 37.8722 | C20: 115799.63 | D20: 632.44 | E20: 116432.07
A21: 15 | B21: 37.8722 | C21: 109316.37 | D21: 709.5 | E21: 110025.87
A22: 16 | B22: 37.8722 | C22: 111863.79 | D22: 757.49 | E22: 112621.28
A23: 17 | B23: 37.8722 | C23: 112163.48 | D23: 611.48 | E23: 112774.96
A24: 18 | B24: 37.8722 | C24: 108782.05 | D24: 497.2 | E24: 109279.25
A25: 19 | B25: 37.8722 | C25: 104718.88 | D25: 546.43 | E25: 105265.31
A26: 20 | B26: 37.8722 | C26: 96572.98 | D26: 607.98 | E26: 97180.96
A27: 21 | B27: 37.8722 | C27: 95983.2 | D27: 589.97 | E27: 96573.17
A28: 22 | B28: 37.8722 | C28: 96043.79 | D28: 443.99 | E28: 96487.78
A29: 23 | B29: 37.8722 | C29: 96898.93 | D29: 631.17 | E29: 97530.1
A30: 24 | B30: 37.8722 | C30: 93924.46 | D30: 477.9 | E30: 94402.36
A31: 25 | B31: 37.8722 | C31: 95009.91 | D31: 586.48 | E31: 95596.39
A32: 26 | B32: 37.8722 | C32: 96138.75 | D32: 416.54 | E32: 96555.29
A33: 27 | B33: 37.8722 | C33: 16642.91 | D33: 650.36 | E33: 17293.27
A34: 28 | B34: 37.8722 | C34: 0 | D34: 699.54 | E34: 699.54
A35: 29
A36: 30
A37: 31
A38: Загальний обсяг газу, м3 | C38: =SUM(C7:C37) -> 2901161.48 | D38: =SUM(D7:D37) -> 17407.38 | E38: =SUM(E7:E37) -> 2918568.86
A39: Енергія, МДж | C39: =SUMPRODUCT(B7:B37,C7:C37) -> 109939726.5 | D39: =SUMPRODUCT(B7:B37,D7:D37) -> 659594.4266 | E39: =SUMPRODUCT(B7:B37,E7:E37) -> 110599321
A40: Теплота згоряння (середньозважене значення за місяць), МДж/м³ | C40: =C39/C38 -> 37.89507316 | D40: =D39/D38 -> 37.89165438 | E40: =E39/E38 -> 37.89505277
A41: Теплота згоряння (середньозважене значення за місяць), ккал/м³ | C41: =C40*238.8459 -> 9051.082854 | D41: =D40*238.8459 -> 9050.266293 | E41: =E40*238.8459 -> 9051.077983
A42: Теплота згоряння (середньозважене значення за місяць), кВт*год./м³ | C42: =C40/3.6 -> 10.52640921 | D42: =C40/3.6 -> 10.52640921 | E42: =E40/3.6 -> 10.52640355

Sheet додаток
A2: Додаток до Паспорту фізико-хімічних показників природного газу №634
A4: Область | B4: ГРС, прямий споживач | C4: Cередньозважене значення вищої теплоти згоряння
C5: МДж/м³ | D5: ккал/м³ | E5: кВт*год./м³
A6: Луганська область | B6: ГРС НПЗ | C6: 37.9 | D6: 9051 | E6: 10.53
B7: ГРС НПС | C7: 37.89 | D7: 9050 | E7: 10.53
A8: Середньозважене значення вищої теплоти згоряння по маршруту № 634 | C8: 37.9 | D8: 9051 | E8: 10.53
A12: Начальник управління Сєвєродонецького ЛВУМГ Головко Ю.О.
A13: Підрозділу підприємства, якому підпорядкована лабораторія | D13: прізвище | E13: підпис | F13: дата
A14: Інженер ІІ кат.вимірювальної хіміко-аналітичної лабораторії Єрьоменко М.О.
A15: Лабораторія, де здійснювалось вимірювання газу | D15: прізвище | E15: підпис | F15: дата
A16: Начальник служби метрології Ісаєв В.С.
A17: Підрозділу, відповідального за облік газу за маршрутом | D17: прізвище | E17: підпис | F17: дата

Sheet variablesList (hidden)
A1: 3 | B1: x:\gaysin | C1: 10, 11, 24, 25, 127, 128, 132, 180, 207, 215 | D1: x:\
B2: x:\Illinci
B3: x:\Talne
